bitfinex/quotes_BTCUSD_20241010
["timestamp","ask_amount","ask_price","bid_price","bid_amount"]
[1728529235430,0.003,60912.0,60911.0,0.01532687]
[1728529235878,0.003,60912.0,60911.0,0.164173]
[1728529236114,0.003,60912.0,60911.0,0.17949986]
[1728529236324,0.007,60912.0,60911.0,0.17949986]
[1728529236762,0.003,60912.0,60911.0,0.17949986]
[1728529237051,0.05085804,60914.0,60911.0,0.4571466]
[1728529237261,0.005,60912.0,60911.0,0.27764474]
[1728529237486,0.005,60912.0,60911.0,0.29297398]
[1728529237914,0.05085804,60914.0,60911.0,0.29297398]
[1728529238129,0.05085804,60914.0,60912.0,0.17949924]
[1728529238407,0.05085804,60914.0,60911.0,0.44181774]
[1728529238408,0.05585804,60914.0,60911.0,0.44181774]
[1728529238639,0.05585804,60914.0,60911.0,0.11347374]
[1728529238845,0.005,60912.0,60911.0,0.27764474]
[1728529241095,0.01,60912.0,60911.0,0.164171]
[1728529244264,0.05922204,60912.0,60911.0,0.164171]
[1728529244677,0.01,60912.0,60911.0,0.164989]
[1728529244680,0.01,60912.0,60911.0,0.000818]
[1728529244681,0.78781404,60912.0,60911.0,0.000818]
[1728529244899,0.74072028,60912.0,60911.0,0.000818]
[1728529246470,0.86161734,60912.0,60911.0,0.000818]
[1728529246945,0.90884468,60912.0,60911.0,0.000818]
[1728529247420,1.01739442,60912.0,60911.0,0.000818]
[1728529247643,0.95819402,60912.0,60911.0,0.001818]
[1728529247870,0.94619402,60912.0,60911.0,0.001818]
[1728529248104,1.12100063,60912.0,60911.0,0.001818]
[1728529248354,1.13300063,60912.0,60911.0,0.002818]
[1728529248607,1.11900063,60912.0,60911.0,0.001818]
[1728529248855,1.13300063,60912.0,60911.0,0.002818]
[1728529250341,1.13300063,60912.0,60908.0,0.000467]
[1728529250342,0.171179,60909.0,60908.0,0.000467]
[1728529250581,0.84420202,60909.0,60908.0,0.000467]
[1728529250932,0.84420202,60909.0,60892.0,0.26548256]
[1728529250933,0.169214,60896.0,60892.0,0.01714436]
[1728529251139,0.60912538,60896.0,60893.0,0.2483382]
[1728529251388,0.84223702,60896.0,60883.0,0.01714436]
[1728529251621,0.84423702,60896.0,60883.0,0.01714436]
[1728529251841,0.84423702,60896.0,60884.0,0.001634]
[1728529252721,0.99168033,60896.0,60884.0,0.001634]
[1728529253419,0.80688669,60896.0,60884.0,0.001634]
[1728529253860,0.79288669,60896.0,60884.0,0.02580734]
[1728529254076,0.9816933,60896.0,60884.0,0.001634]
[1728529254513,0.9656933,60896.0,60884.0,0.001634]
[1728529254975,0.9796933,60896.0,60884.0,0.001634]
[1728529256506,1.10235269,60896.0,60884.0,0.001634]
[1728529257628,0.9796933,60896.0,60884.0,0.001634]
[1728529258271,0.9816933,60896.0,60884.0,0.001634]
[1728529258517,1.07976502,60896.0,60884.0,0.001634]
[1728529259198,0.79993199,60896.0,60884.0,0.001634]
[1728529259407,1.07901644,60896.0,60884.0,0.001634]
[1728529260482,1.10894421,60896.0,60884.0,0.001634]
[1728529260696,0.45541774,60885.0,60884.0,0.001634]
[1728529260914,0.61625538,60885.0,60884.0,0.001634]
[1728529263378,0.63025538,60885.0,60884.0,0.001634]
[1728529264079,0.64425538,60885.0,60884.0,0.001634]
[1728529264982,0.6393129,60885.0,60884.0,0.001634]
[1728529269699,0.80011951,60885.0,60884.0,0.001634]
[1728529271244,0.68664577,60885.0,60884.0,0.001634]
[1728529271464,0.80011951,60885.0,60884.0,0.001634]
[1728529271918,0.6393129,60885.0,60884.0,0.001634]
[1728529272142,0.52583916,60885.0,60884.0,0.001634]
[1728529272585,0.43363916,60885.0,60884.0,0.001634]
[1728529272846,0.35313916,60885.0,60884.0,0.001634]
[1728529273106,0.8854511,60885.0,60884.0,0.001634]
[1728529273298,0.6371129,60885.0,60884.0,0.001634]
[1728529273973,0.65354525,60885.0,60884.0,0.001634]
[1728529274208,0.52363916,60885.0,60884.0,0.001634]
[1728529276425,0.35313916,60885.0,60884.0,0.001634]
[1728529276922,0.18883764,60885.0,60884.0,0.001634]
[1728529277146,0.028,60885.0,60884.0,0.16588]
[1728529277366,0.028,60885.0,60884.0,0.02533629]
[1728529277579,0.028,60885.0,60884.0,0.001634]
[1728529277805,0.164242,60886.0,60884.0,0.001634]
[1728529278031,0.4125822,60885.0,60884.0,0.001634]
[1728529278269,0.32508164,60885.0,60884.0,0.001634]
[1728529278497,0.34508164,60885.0,60884.0,0.001634]
[1728529279377,0.33708164,60885.0,60884.0,0.001634]
[1728529279827,0.32508164,60885.0,60884.0,0.001634]
[1728529280520,0.33008164,60885.0,60884.0,0.001634]
[1728529280788,0.33608164,60885.0,60884.0,0.001634]
[1728529281868,0.33771764,60885.0,60884.0,0.001634]
[1728529283637,0.38891194,60885.0,60884.0,0.001634]
[1728529284789,0.38891194,60885.0,60884.0,0.11510774]
[1728529284790,0.17679788,60885.0,60884.0,0.11510774]
[1728529285439,0.228127,60885.0,60884.0,0.11510774]
[1728529285649,0.06396512,60885.0,60884.0,0.11510774]
[1728529286111,0.17688,60885.0,60884.0,0.11510774]
[1728529287698,0.17688,60885.0,60884.0,0.001634]
[1728529287699,0.22820792,60885.0,60884.0,0.001634]
[1728529289515,0.17688,60885.0,60884.0,0.001634]
[1728529289730,0.22820742,60885.0,60884.0,0.001634]
[1728529289962,0.17688,60885.0,60884.0,0.001634]
[1728529290395,0.22580744,60885.0,60884.0,0.001634]
[1728529290613,0.2282074,60885.0,60884.0,0.001634]
[1728529291732,0.40972962,60885.0,60884.0,0.001634]
[1728529291969,0.2282074,60885.0,60884.0,0.001634]
[1728529292184,0.30196884,60885.0,60884.0,0.001634]
[1728529292404,0.45680763,60885.0,60884.0,0.001634]
[1728529293333,0.35850879,60885.0,60884.0,0.001634]
[1728529294415,0.48138234,60885.0,60884.0,0.001634]
[1728529295544,0.35850879,60885.0,60884.0,0.001634]
[1728529300428,0.35876743,60885.0,60884.0,0.001634]
[1728529305118,0.35876063,60885.0,60884.0,0.001634]
[1728529306405,0.48193337,60885.0,60884.0,0.001634]
[1728529306617,0.35876063,60885.0,60884.0,0.001634]
[1728529306844,0.48193311,60885.0,60884.0,0.001634]
[1728529307058,0.35876063,60885.0,60884.0,0.001634]
[1728529307302,0.19451663,60885.0,60884.0,0.16588]
[1728529309225,0.0518948,60885.0,60884.0,0.24218]
[1728529309915,0.05189101,60885.0,60884.0,0.24218]
[1728529311158,0.002636,60885.0,60884.0,0.24218]
[1728529312368,0.07651852,60885.0,60884.0,0.24218]
[1728529312581,0.002636,60885.0,60884.0,0.16588]
[1728529312830,0.07651852,60885.0,60884.0,0.16588]
[1728529313039,0.002636,60885.0,60884.0,0.16588]
[1728529315380,0.07651302,60885.0,60884.0,0.001634]
[1728529317154,0.07651986,60885.0,60884.0,0.001634]
[1728529319533,0.07653166,60885.0,60884.0,0.001634]
[1728529320010,0.07653166,60885.0,60884.0,0.16588]
[1728529321435,0.002636,60885.0,60884.0,0.16588]
[1728529327596,0.18453557,60885.0,60884.0,0.16588]
[1728529328034,0.18453545,60885.0,60884.0,0.16588]
[1728529330410,0.28308838,60885.0,60884.0,0.16588]
[1728529333606,0.28310143,60885.0,60884.0,0.16588]
[1728529336292,0.28310143,60885.0,60884.0,0.27935374]
[1728529336781,0.28310143,60885.0,60884.0,0.35755374]
[1728529336782,0.002636,60885.0,60884.0,0.35755374]
[1728529337010,0.05192072,60885.0,60884.0,0.35755374]
[1728529337237,0.002636,60885.0,60884.0,0.35755374]
[1728529337500,0.002636,60885.0,60884.0,0.45755374]
[1728529337723,0.001636,60885.0,60884.0,0.45755374]
[1728529338178,0.001636,60885.0,60884.0,0.45955374]
[1728529338653,0.002636,60885.0,60884.0,0.45955374]
[1728529338871,0.001636,60885.0,60884.0,0.45955374]
[1728529339338,0.002636,60885.0,60884.0,0.45755374]
[1728529339570,0.002636,60885.0,60884.0,0.45955374]
[1728529339767,0.003636,60885.0,60884.0,0.45955374]
[1728529340639,0.003636,60885.0,60884.0,0.71479138]
[1728529340855,0.003636,60885.0,60884.0,0.71973386]
[1728529358554,0.003636,60885.0,60884.0,0.60626012]
[1728529358808,0.003636,60885.0,60884.0,0.71973386]
[1728529360040,0.003636,60885.0,60884.0,0.54713386]
[1728529360968,0.003636,60885.0,60884.0,0.27282248]
[1728529361186,0.003636,60885.0,60884.0,0.38135374]
[1728529361187,0.102736,60885.0,60884.0,0.38135374]
[1728529363845,0.102736,60885.0,60884.0,0.26788]
[1728529364093,0.102736,60885.0,60884.0,0.38135374]
[1728529365075,0.003636,60885.0,60884.0,0.38135374]
[1728529366282,0.003636,60885.0,60884.0,0.38629622]
[1728529367519,0.003636,60885.0,60884.0,0.40165267]
[1728529367975,0.003636,60885.0,60884.0,0.28817893]
[1728529368208,0.003636,60885.0,60884.0,0.40165267]
[1728529369665,0.003636,60885.0,60884.0,0.40165309]
[1728529373609,0.003636,60885.0,60884.0,0.38629622]
[1728529373839,0.003636,60885.0,60884.0,0.40165239]
[1728529376467,0.003636,60885.0,60884.0,0.38629622]
[1728529376740,0.003636,60885.0,60884.0,0.4016533]
[1728529379853,0.003636,60885.0,60884.0,0.40165366]
[1728529382194,0.003636,60885.0,60884.0,0.38629622]
[1728529382450,0.003636,60885.0,60884.0,0.4016545]
[1728529384295,0.003636,60885.0,60884.0,0.39671202]
[1728529385668,0.003636,60885.0,60884.0,0.38135374]
[1728529385890,0.003636,60885.0,60884.0,0.39671223]
[1728529389093,0.003636,60885.0,60884.0,0.39671523]
[1728529395701,0.003636,60885.0,60884.0,0.3967305]
[1728529402449,0.003636,60885.0,60884.0,0.39673617]
[1728529405691,0.003636,60885.0,60884.0,0.38135374]
[1728529405960,0.003636,60885.0,60884.0,0.39673586]
[1728529412252,0.183536,60885.0,60884.0,0.39673586]
[1728529412466,0.183536,60885.0,60884.0,0.3967367]
[1728529419192,0.183536,60885.0,60884.0,0.38135374]
[1728529419400,0.183536,60885.0,60884.0,0.39673307]
[1728529420675,0.003636,60885.0,60884.0,0.39673307]
[1728529422685,0.003636,60885.0,60884.0,0.39673304]
[1728529426210,0.003636,60885.0,60884.0,0.396738]
[1728529429359,0.003636,60885.0,60884.0,0.64787564]
[1728529429579,0.003636,60885.0,60884.0,0.72567564]
[1728529430064,0.003636,60885.0,60884.0,0.71029138]
[1728529430245,0.003636,60885.0,60884.0,0.72567155]
[1728529430469,0.002636,60885.0,60884.0,0.72367155]
[1728529430683,0.001636,60885.0,60884.0,0.72367155]
[1728529431184,0.003636,60885.0,60884.0,0.73067155]
[1728529431386,0.002636,60885.0,60884.0,0.73067155]
[1728529431800,0.001636,60885.0,60884.0,0.72367155]
[1728529432660,0.001636,60885.0,60884.0,0.64587155]
[1728529432867,0.002636,60885.0,60884.0,0.65687155]
[1728529433107,0.002636,60885.0,60884.0,0.64149138]
[1728529433300,0.002636,60885.0,60884.0,0.65686723]
[1728529433545,0.003636,60885.0,60884.0,0.57856723]
[1728529433759,0.003636,60885.0,60884.0,0.57857109]
[1728529436690,0.003636,60885.0,60884.0,0.57856927]
[1728529446805,0.003636,60885.0,60884.0,0.57857471]
[1728529450516,0.003636,60885.0,60884.0,0.57857474]
[1728529454031,0.003636,60885.0,60884.0,0.56319138]
[1728529454289,0.003636,60885.0,60884.0,0.57857698]
[1728529457352,0.003636,60885.0,60884.0,0.5785816]
[1728529463067,0.183836,60885.0,60884.0,0.30427022]
[1728529463331,0.183836,60885.0,60884.0,0.41774396]
[1728529463840,0.18344181,60885.0,60884.0,0.41774396]
[1728529464337,0.18319544,60885.0,60884.0,0.41774396]
[1728529465766,0.25713538,60885.0,60884.0,0.04002422]
[1728529466043,0.44602603,60885.0,60884.0,0.04002422]
[1728529466289,0.62797669,60885.0,60884.0,0.024634]
[1728529466545,0.46273269,60885.0,60884.0,0.013634]
[1728529466776,0.46273269,60885.0,60884.0,0.001634]
[1728529466777,0.62597669,60885.0,60884.0,0.001634]
[1728529467017,0.46173269,60885.0,60884.0,0.006634]
[1728529467220,0.46173269,60885.0,60884.0,0.004634]
[1728529467488,0.46173269,60885.0,60884.0,0.001634]
[1728529467717,0.46973269,60885.0,60884.0,0.001634]
[1728529468184,0.63397669,60885.0,60884.0,0.001634]
[1728529468403,0.18919544,60885.0,60884.0,0.001634]
[1728529468884,0.18919544,60885.0,60884.0,0.16588]
[1728529469382,0.26307602,60885.0,60884.0,0.16588]
[1728529469616,0.26307521,60885.0,60884.0,0.001634]
[1728529470062,0.26307521,60885.0,60884.0,0.16588]
[1728529470286,0.18919544,60885.0,60884.0,0.001634]
[1728529470960,0.18919544,60885.0,60884.0,0.16588]
[1728529471408,0.18919544,60885.0,60884.0,0.001634]
[1728529471409,0.23843618,60885.0,60884.0,0.001634]
[1728529474406,0.18919544,60885.0,60884.0,0.001634]
[1728529477789,0.18919544,60885.0,60884.0,0.16588]
[1728529479831,0.18919544,60885.0,60884.0,0.001634]
[1728529483681,0.18919544,60885.0,60884.0,0.16588]
[1728529484590,0.18919544,60885.0,60884.0,0.001634]
[1728529489210,0.18919544,60885.0,60884.0,0.16588]
[1728529489468,0.00899544,60885.0,60884.0,0.28125051]
[1728529490400,0.00499544,60885.0,60884.0,0.28125051]
[1728529490653,0.00499544,60885.0,60884.0,0.28725051]
[1728529490654,0.00199544,60885.0,60884.0,0.28725051]
[1728529490891,0.00299544,60885.0,60884.0,0.29225051]
[1728529491875,0.00199544,60885.0,60884.0,0.38595051]
[1728529492118,0.00099544,60885.0,60884.0,0.38095051]
[1728529492367,0.00299544,60885.0,60884.0,0.39195454]
[1728529492606,0.00299544,60885.0,60884.0,0.38695454]
[1728529492849,0.00199544,60885.0,60884.0,0.28125454]
[1728529493083,0.00399544,60885.0,60884.0,0.29225454]
[1728529494000,0.00399544,60885.0,60884.0,0.29225354]
[1728529495908,0.00399544,60885.0,60884.0,0.27688]
[1728529496133,0.00399544,60885.0,60884.0,0.2922515]
[1728529501395,0.00399544,60885.0,60884.0,0.45308914]
[1728529502055,0.00399544,60885.0,60884.0,0.43771764]
[1728529502290,0.00399544,60885.0,60884.0,0.45308324]
[1728529505682,0.00399544,60885.0,60884.0,0.43771764]
[1728529505922,0.00399544,60885.0,60884.0,0.4530819]
[1728529506165,0.18119544,60885.0,60884.0,0.29224426]
[1728529507523,0.18119544,60885.0,60884.0,0.02799826]
[1728529507524,0.34543944,60885.0,60884.0,0.02799826]
[1728529507741,0.34543944,60885.0,60884.0,0.012634]
[1728529507742,0.39465372,60885.0,60884.0,0.012634]
[1728529507981,0.41926087,60885.0,60884.0,0.012634]
[1728529508232,0.78646154,60885.0,60884.0,0.012634]
[1728529508418,0.78546154,60885.0,60884.0,0.006634]
[1728529508647,0.68703297,60885.0,60884.0,0.006634]
[1728529508860,0.68803297,60885.0,60884.0,0.012634]
[1728529509071,0.78651203,60885.0,60884.0,0.012634]
[1728529509312,0.78651203,60885.0,60884.0,0.007634]
[1728529509313,0.78451203,60885.0,60884.0,0.007634]
[1728529509524,0.78451203,60885.0,60884.0,0.006634]
[1728529509714,0.78451203,60885.0,60884.0,0.003634]
[1728529511205,0.78451203,60885.0,60884.0,0.004634]
[1728529511423,0.78351203,60885.0,60884.0,0.002634]
[1728529511856,0.78351203,60885.0,60884.0,0.004634]
[1728529512791,0.68503297,60885.0,60884.0,0.004634]
[1728529514386,0.68503297,60885.0,60884.0,0.001634]
[1728529514653,0.68503297,60885.0,60884.0,0.002634]
[1728529514882,0.68503297,60885.0,60884.0,0.004634]
[1728529515107,0.68503297,60885.0,60884.0,0.001634]
[1728529515545,0.69303297,60885.0,60884.0,0.001634]
[1728529515767,0.68903297,60885.0,60884.0,0.001634]
[1728529515989,0.68497081,60885.0,60884.0,0.001634]
[1728529516213,0.69397081,60885.0,60884.0,0.002634]
[1728529516443,0.68997081,60885.0,60884.0,0.002634]
[1728529517588,0.69497081,60885.0,60884.0,0.002634]
[1728529517807,0.69497081,60885.0,60876.0,0.02391714]
[1728529517808,0.164264,60878.0,60876.0,0.02391714]
[1728529518029,0.164264,60878.0,60874.0,0.165091]
[1728529518030,0.57382595,60877.0,60874.0,0.000818]
[1728529518223,0.04921387,60875.0,60874.0,0.000818]
[1728529518745,0.04921387,60875.0,60874.0,0.18953477]
[1728529518964,0.04921387,60876.0,60874.0,0.000818]
[1728529519179,0.04921387,60875.0,60874.0,0.000818]
[1728529519395,0.21005151,60876.0,60874.0,0.000818]
[1728529520771,0.37429616,60876.0,60874.0,0.000818]
[1728529521507,0.37629616,60876.0,60874.0,0.008818]
[1728529521740,0.37529616,60876.0,60874.0,0.003818]
[1728529521977,0.37429616,60876.0,60874.0,0.000818]
[1728529522247,0.37429616,60876.0,60874.0,0.004818]
[1728529522473,0.32510564,60876.0,60874.0,0.003818]
[1728529522661,0.32510564,60876.0,60874.0,0.000818]
[1728529522872,0.32510564,60876.0,60874.0,0.003818]
[1728529523083,0.164271,60875.0,60874.0,0.005818]
[1728529523304,0.57344684,60875.0,60874.0,0.005818]
[1728529523547,0.50510864,60875.0,60874.0,0.005818]
[1728529523962,0.55429916,60875.0,60874.0,0.005818]
[1728529524616,0.55429916,60875.0,60874.0,0.002818]
[1728529525478,0.55629916,60875.0,60874.0,0.002818]
[1728529525686,0.55629916,60875.0,60874.0,0.000818]
[1728529526191,0.55829916,60875.0,60874.0,0.000818]
[1728529526414,0.50910864,60875.0,60874.0,0.000818]
[1728529534873,0.34483764,60875.0,60874.0,0.165091]
[1728529535561,0.26473764,60875.0,60874.0,0.165091]
[1728529535785,0.004,60875.0,60874.0,0.000818]
[1728529536033,0.004,60875.0,60874.0,0.165091]
[1728529537909,0.002,60875.0,60874.0,0.165091]
[1728529538105,0.003,60875.0,60874.0,0.165091]
[1728529538773,0.001,60875.0,60874.0,0.165091]
[1728529539211,0.002,60875.0,60874.0,0.165091]
[1728529540424,0.002,60875.0,60874.0,0.18048277]
[1728529542183,0.45200189,60884.0,60883.0,0.164249]
[1728529542369,0.50111132,60884.0,60883.0,0.27772274]
[1728529542830,0.25277312,60884.0,60883.0,0.27772274]
[1728529543071,0.25277312,60884.0,60883.0,0.11347374]
[1728529543308,0.25277312,60884.0,60883.0,0.27772274]
[1728529543532,0.02376369,60884.0,60883.0,0.11347374]
[1728529543761,0.02376369,60884.0,60883.0,0.27772274]
[1728529543980,0.03776369,60884.0,60883.0,0.11347374]
[1728529544435,0.05176369,60884.0,60883.0,0.11347374]
[1728529544654,0.03776369,60884.0,60881.0,0.164254]
[1728529545081,0.02676369,60884.0,60881.0,0.164254]
[1728529545312,0.02676369,60884.0,60883.0,0.164249]
[1728529545529,0.02676369,60884.0,60881.0,0.164254]
[1728529545761,0.02376369,60884.0,60882.0,0.164249]
[1728529545980,0.02376369,60884.0,60881.0,0.164254]
[1728529546203,0.02476369,60884.0,60882.0,0.164251]
[1728529546420,0.02476369,60884.0,60880.0,0.13786484]
[1728529546678,0.02476369,60884.0,60881.0,0.164254]
[1728529546900,0.02776369,60884.0,60881.0,0.164254]
[1728529547119,0.02776369,60884.0,60883.0,0.27772274]
[1728529547120,0.02476369,60884.0,60883.0,0.27772274]
[1728529547347,0.02676369,60884.0,60883.0,0.27772274]
[1728529547571,0.02376369,60884.0,60883.0,0.27772274]
[1728529547792,0.02576369,60884.0,60883.0,0.11347374]
[1728529548288,0.02376369,60884.0,60883.0,0.11347374]
[1728529548500,0.02976369,60884.0,60883.0,0.11347374]
[1728529548947,0.02976369,60884.0,60883.0,0.27772274]
[1728529549197,0.02976369,60884.0,60883.0,0.11347374]
[1728529549424,0.02976369,60884.0,60883.0,0.27772274]
[1728529549634,0.02976369,60884.0,60883.0,0.11347374]
[1728529550318,0.07893649,60884.0,60883.0,0.11347374]
[1728529551192,0.07893649,60884.0,60880.0,0.164255]
[1728529551412,0.07896423,60884.0,60882.0,0.11347374]
[1728529551854,0.02976369,60884.0,60882.0,0.11347374]
[1728529552091,0.02676369,60884.0,60882.0,0.11347374]
[1728529552319,0.07596423,60884.0,60882.0,0.11347374]
[1728529552550,0.24021023,60884.0,60882.0,0.11347374]
[1728529552789,0.07596423,60884.0,60882.0,0.11347374]
[1728529553015,0.07296423,60884.0,60882.0,0.11347374]
[1728529553290,0.04920054,60883.0,60882.0,0.11347374]
[1728529554191,0.0737592,60883.0,60882.0,0.11347374]
[1728529554445,0.0983456,60883.0,60882.0,0.11347374]
[1728529554675,0.28007305,60883.0,60882.0,0.11347374]
[1728529554903,0.28207305,60883.0,60882.0,0.11347374]
[1728529555375,0.28407305,60883.0,60882.0,0.11347374]
[1728529556082,0.18572745,60883.0,60882.0,0.11347374]
[1728529556317,0.004,60883.0,60882.0,0.11347374]
[1728529556572,0.2840812,60883.0,60882.0,0.0243993]
[1728529557071,0.2840812,60883.0,60880.0,0.164256]
[1728529557298,0.07384814,60882.0,60880.0,0.164256]
[1728529560349,0.04923352,60880.0,60879.0,0.27773374]
[1728529560539,0.04923352,60880.0,60879.0,0.30373624]
[1728529561680,0.04923352,60880.0,60879.0,0.30473624]
[1728529565314,0.22423352,60881.0,60879.0,0.14047624]
[1728529565562,0.22423352,60881.0,60880.0,0.164257]
[1728529566715,0.0942,60879.0,60875.0,0.000818]
[1728529566943,0.38639872,60876.0,60875.0,0.000818]
[1728529567172,0.77819806,60876.0,60875.0,0.000818]
[1728529567403,0.80266862,60876.0,60875.0,0.000818]
[1728529567866,0.80266862,60876.0,60875.0,0.005818]
[1728529568310,0.80266862,60876.0,60875.0,0.009818]
[1728529568582,0.67973662,60876.0,60875.0,0.004818]
[1728529568811,0.73104782,60876.0,60875.0,0.00315572]
[1728529569936,0.73204782,60876.0,60875.0,0.00815572]
[1728529570155,0.73104782,60876.0,60875.0,0.00315572]
[1728529570392,0.74504782,60876.0,60875.0,0.00415572]
[1728529570621,0.74504782,60876.0,60875.0,0.001]
[1728529570847,0.74804782,60876.0,60875.0,0.001]
[1728529571100,0.90885443,60876.0,60875.0,0.001]
[1728529571320,0.90585443,60876.0,60875.0,0.001]
[1728529571537,1.01932817,60876.0,60875.0,0.001]
[1728529571756,0.75904782,60876.0,60875.0,0.001]
[1728529574612,0.85536437,60876.0,60875.0,0.001]
[1728529574855,0.70773662,60876.0,60875.0,0.001]
[1728529575328,0.69373662,60876.0,60875.0,0.001]
[1728529575549,0.70573662,60876.0,60875.0,0.001]
[1728529575781,0.164271,60875.0,60874.0,0.000818]
[1728529575979,0.50683962,60875.0,60874.0,0.000818]
[1728529576721,0.50673814,60875.0,60874.0,0.000818]
[1728529577203,0.51273814,60875.0,60874.0,0.000818]
[1728529578128,0.51873814,60875.0,60874.0,0.001818]
[1728529581575,0.51870516,60875.0,60874.0,0.001818]
[1728529582453,0.6684945,60875.0,60874.0,0.001818]
[1728529582896,0.51870516,60875.0,60874.0,0.001818]
[1728529585457,1.0577171,60875.0,60874.0,0.001818]
[1728529585691,1.0577171,60875.0,60866.0,0.000817]
[1728529585692,0.341492,60867.0,60866.0,0.000817]
[1728529585921,0.8069028,60867.0,60866.0,0.000817]
[1728529586162,0.68392616,60867.0,60866.0,0.000817]
[1728529586425,0.7973999,60867.0,60866.0,0.000817]
[1728529587541,0.8113999,60867.0,60866.0,0.000817]
[1728529588440,0.69792616,60867.0,60866.0,0.000817]
[1728529589626,0.71192616,60867.0,60866.0,0.000817]
[1728529591600,0.83476373,60867.0,60866.0,0.000817]
[1728529592807,0.71192616,60867.0,60866.0,0.000817]
[1728529593330,0.71692616,60867.0,60866.0,0.000817]
[1728529598649,0.76814801,60867.0,60866.0,0.000817]
[1728529600176,1.01648621,60867.0,60866.0,0.000817]
[1728529600467,0.93609219,60867.0,60866.0,0.000817]
[1728529600669,0.339025,60855.0,60854.0,0.04066568]
[1728529601388,0.49986264,60855.0,60854.0,0.04066568]
[1728529601610,0.49986264,60855.0,60854.0,0.02351034]
[1728529602082,0.164331,60853.0,60850.0,0.000818]
[1728529602315,0.32516864,60853.0,60850.0,0.000818]
[1728529602567,0.16083764,60853.0,60850.0,0.02464586]
[1728529602817,0.16083764,60853.0,60850.0,0.18898286]
[1728529603089,0.16083764,60853.0,60851.0,0.164335]
[1728529603300,0.16083764,60853.0,60850.0,0.000818]
[1728529603533,0.16083764,60853.0,60852.0,0.164333]
[1728529604006,0.16083764,60853.0,60851.0,0.164334]
[1728529604257,0.16083764,60853.0,60850.0,0.000818]
[1728529604507,0.16083764,60853.0,60851.0,0.164333]
[1728529605015,0.16083764,60853.0,60850.0,0.329493]
[1728529605276,0.16083764,60853.0,60851.0,0.164334]
[1728529605742,0.16083764,60853.0,60851.0,0.164335]
[1728529605982,0.16083764,60853.0,60850.0,0.02441808]
[1728529606228,0.16083764,60853.0,60851.0,0.164335]
[1728529606458,0.16083764,60853.0,60851.0,0.164334]
[1728529606921,0.16083764,60853.0,60850.0,0.02441808]
[1728529607168,0.16083764,60853.0,60851.0,0.164334]
[1728529607404,0.16083764,60853.0,60851.0,0.164335]
[1728529607639,0.16083764,60853.0,60851.0,0.164334]
[1728529607891,0.32516864,60853.0,60850.0,0.02441808]
[1728529608153,0.16083764,60853.0,60852.0,0.164333]
[1728529608404,0.16083764,60853.0,60851.0,0.164334]
[1728529608652,0.16083764,60853.0,60850.0,0.02441808]
[1728529609415,0.16083764,60853.0,60850.0,0.18875508]
[1728529610169,0.16083764,60853.0,60850.0,0.02441808]
[1728529610402,0.16083764,60853.0,60851.0,0.164333]
[1728529611850,0.16083764,60853.0,60850.0,0.18875508]
[1728529612617,0.16083764,60853.0,60852.0,0.11038946]
[1728529614074,0.16083764,60853.0,60852.0,0.27472246]
[1728529614306,0.16083764,60853.0,60852.0,0.11038946]
[1728529615054,0.16083764,60853.0,60852.0,0.27472246]
[1728529615295,0.16083764,60853.0,60852.0,0.11038946]
[1728529615793,0.04921148,60855.0,60854.0,0.164327]
[1728529616043,0.21004912,60855.0,60852.0,0.11038946]
[1728529616297,0.21004912,60855.0,60853.0,0.16433]
[1728529616554,0.21004912,60855.0,60854.0,0.164327]
[1728529617267,0.04921148,60855.0,60854.0,0.164327]
[1728529617508,0.04921148,60856.0,60855.0,0.164325]
[1728529617758,0.04921148,60856.0,60855.0,0.27471446]
[1728529618188,0.04921374,60856.0,60855.0,0.27471446]
[1728529618887,0.05221374,60856.0,60855.0,0.27471446]
[1728529619325,0.04921374,60856.0,60855.0,0.27471446]
[1728529619542,0.04921179,60856.0,60855.0,0.27471446]
[1728529619790,0.07381769,60857.0,60855.0,0.27471446]
[1728529620013,0.002,60856.0,60855.0,0.27471446]
[1728529620235,0.04921405,60856.0,60855.0,0.27471446]
[1728529620452,0.05121405,60856.0,60855.0,0.27471446]
[1728529620672,0.002,60856.0,60855.0,0.27471446]
[1728529621528,0.05121528,60856.0,60855.0,0.27471446]
[1728529622207,0.002,60856.0,60855.0,0.27471446]
[1728529622686,0.002,60856.0,60855.0,0.164325]
[1728529622928,0.1739,60856.0,60851.0,0.000818]
[1728529623171,0.164333,60852.0,60851.0,0.000818]
[1728529623622,0.23815069,60852.0,60851.0,0.000818]
[1728529626361,0.164333,60852.0,60851.0,0.000818]
[1728529626591,0.09842359,60853.0,60851.0,0.165153]
[1728529626824,0.25926123,60853.0,60852.0,0.11038946]
[1728529627051,0.44108013,60853.0,60852.0,0.11038946]
[1728529627507,0.44108013,60853.0,60851.0,0.000818]
[1728529627729,0.28034573,60852.0,60851.0,0.11120746]
[1728529628659,0.3461519,60852.0,60851.0,0.11120746]
[1728529628931,0.50698954,60852.0,60851.0,0.000818]
[1728529629664,0.63001903,60852.0,60851.0,0.000818]
[1728529630689,0.50698954,60852.0,60851.0,0.000818]
[1728529632441,0.5072261,60852.0,60851.0,0.000818]
[1728529637193,0.50720135,60852.0,60851.0,0.000818]
[1728529642315,0.55856016,60852.0,60851.0,0.000818]
[1728529643721,0.55846156,60852.0,60851.0,0.000818]
[1728529644642,0.70636673,60852.0,60851.0,0.000818]
[1728529644866,0.70636654,60852.0,60851.0,0.000818]
[1728529645105,0.55846156,60852.0,60851.0,0.000818]
[1728529645339,0.60050275,60852.0,60851.0,0.000818]
[1728529645619,0.79975745,60852.0,60851.0,0.000818]
[1728529645864,0.74840818,60852.0,60851.0,0.000818]
[1728529646100,0.79975771,60852.0,60851.0,0.000818]
[1728529646563,0.72985228,60852.0,60851.0,0.000818]
[1728529646803,0.72979826,60852.0,60851.0,0.000818]
[1728529647039,0.73279826,60852.0,60851.0,0.000818]
[1728529647289,0.73679826,60852.0,60851.0,0.000818]
[1728529651651,0.73678506,60852.0,60851.0,0.000818]
[1728529653365,0.71335088,60852.0,60851.0,0.11120746]
[1728529653834,0.51413413,60852.0,60851.0,0.000818]
[1728529656374,0.51410159,60852.0,60851.0,0.000818]
[1728529661069,0.51410395,60852.0,60851.0,0.000818]
[1728529661624,0.51573795,60852.0,60851.0,0.000818]
[1728529662769,0.35140495,60852.0,60851.0,0.11120746]
[1728529662986,0.19056731,60852.0,60851.0,0.27554246]
[1728529663885,0.19056731,60852.0,60851.0,0.11120746]